fUST/lending_fUST_20250606
["ID","MTS","AMOUNT","RATE_DAILY","PERIOD"]
[364722418,1749220242068,-440.0,0.00019452,2]
[364722420,1749220242077,-420.0,0.00019452,2]
[364722422,1749220242087,-360.0,0.00019452,2]
[364722423,1749220242096,-440.0,0.00019452,2]
[364722425,1749220242106,-433.53665206,0.00019452,2]
[364722427,1749220242116,-440.0,0.00019452,2]
[364722429,1749220242126,-400.92573595,0.00019452,2]
[364722432,1749220242136,-440.0,0.00019452,2]
[364722433,1749220242145,-440.0,0.00019452,2]
[364722435,1749220242156,-157.75692255,0.00019452,2]
[364722437,1749220242166,-440.0,0.00019452,2]
[364722439,1749220242176,-431.37093086,0.00019452,2]
[364722442,1749220242186,-300.0,0.00019452,2]
[364722444,1749220242196,-440.0,0.00019452,2]
[364722446,1749220242206,-440.0,0.00019452,2]
[364722448,1749220242216,-440.0,0.00019452,2]
[364722450,1749220242226,-433.37129632,0.00019452,2]
[364722452,1749220242235,-402.91084818,0.00019452,2]
[364722454,1749220242245,-440.0,0.00019452,2]
[364722455,1749220242254,-440.0,0.00019452,2]
[364722458,1749220242264,-401.05412847,0.00019452,2]
[364722460,1749220242274,-431.12636405,0.00019452,2]
[364722461,1749220242284,-432.50110164,0.00019452,2]
[364722464,1749220242294,-351.68703402,0.00019452,2]
[364722465,1749220242304,-400.74742679,0.00019452,2]
[364722468,1749220242315,-440.0,0.00019452,2]
[364722469,1749220242325,-492.02168635,0.00019452,2]
[364722471,1749220242334,-281.07240354,0.00019452,2]
[364722473,1749220242344,-284.76336908,0.00019452,2]
[364722476,1749220242354,-440.0,0.00019452,2]
[364722478,1749220242364,-440.0,0.00019452,2]
[364722479,1749220242380,-440.0,0.00019452,2]
[364722482,1749220242390,-440.0,0.00019452,2]
[364722483,1749220242400,-440.0,0.00019452,2]
[364722485,1749220242411,-431.57341156,0.00019452,2]
[364722488,1749220242421,-440.0,0.00019452,2]
[364722489,1749220242431,-493.75350541,0.00019452,2]
[364722491,1749220242444,-440.0,0.00019452,2]
[364722494,1749220242462,-421.18594152,0.00019452,2]
[364722495,1749220242471,-440.0,0.00019452,2]
[364722497,1749220242481,-432.16805472,0.00019452,2]
[364722499,1749220242490,-167.07088979,0.00019452,2]
[364722501,1749220242501,-440.0,0.00019452,2]
[364722503,1749220242510,-420.0,0.00019452,2]
[364722505,1749220242521,-246.00288807,0.00019452,2]
[364722507,1749220242531,-440.0,0.00019452,2]
[364722509,1749220242541,-430.0,0.00019452,2]
[364722511,1749220242550,-440.0,0.00019452,2]
[364722513,1749220242560,-432.2839085,0.00019452,2]
[364722515,1749220242570,-420.0,0.00019452,2]
[364722517,1749220242581,-440.0,0.00019452,2]
[364722519,1749220242593,-420.0,0.00019452,2]
[364722521,1749220242603,-440.0,0.00019452,2]
[364722523,1749220242613,-440.0,0.00019452,2]
[364722525,1749220242622,-432.78174916,0.00019452,2]
[364722527,1749220242631,-440.0,0.00019452,2]
[364722529,1749220242641,-430.0,0.00019452,2]
[364722531,1749220242650,-440.0,0.00019452,2]
[364722533,1749220242660,-388.65651627,0.00019452,2]
[364722535,1749220242670,-440.0,0.00019452,2]
[364722537,1749220242679,-440.0,0.00019452,2]
[364722539,1749220242689,-440.0,0.00019452,2]
[364722541,1749220242698,-468.19705897,0.00019452,2]
[364722543,1749220242709,-384.75865071,0.00019452,2]
[364722545,1749220242718,-430.0,0.00019452,2]
[364722547,1749220242728,-440.0,0.00019452,2]
[364722549,1749220242738,-392.16107037,0.00019452,2]
[364722551,1749220242748,-401.84396955,0.00019452,2]
[364722553,1749220242758,-440.0,0.00019452,2]
[364722555,1749220242767,-430.0,0.00019452,2]
[364722558,1749220242777,-440.0,0.00019452,2]
[364722559,1749220242787,-431.90287361,0.00019452,2]
[364722561,1749220242797,-440.0,0.00019452,2]
[364722564,1749220242807,-440.0,0.00019452,2]
[364722566,1749220242816,-440.0,0.00019452,2]
[364722567,1749220242825,-440.0,0.00019452,2]
[364722569,1749220242835,-440.0,0.00019452,2]
[364722571,1749220242845,-410.0,0.00019452,2]
[364722573,1749220242854,-310.20812094,0.00019452,2]
[364722575,1749220242863,-430.0,0.00019452,2]
[364722577,1749220242873,-440.0,0.00019452,2]
[364722578,1749220242883,-432.50966734,0.00019452,2]
[364722579,1749220242892,-558.76350185,0.00019452,2]
[364722580,1749220242901,-440.0,0.00019452,2]
[364722581,1749220242911,-440.0,0.00019452,2]
[364722582,1749220242920,-433.03324262,0.00019452,2]
[364722583,1749220242930,-440.0,0.00019452,2]
[364722584,1749220242940,-440.0,0.00019452,2]
[364722585,1749220242949,-440.0,0.00019452,2]
[364722586,1749220242960,-447.94663261,0.00019452,2]
[364722587,1749220242970,-432.78407016,0.00019452,2]
[364722588,1749220242979,-440.0,0.00019452,2]
[364722589,1749220242989,-433.46052354,0.00019452,2]
[364722590,1749220242998,-445.9453521,0.00019452,2]
[364722591,1749220243008,-440.0,0.00019452,2]
[364722592,1749220243017,-440.0,0.00019452,2]
[364722593,1749220243026,-420.0,0.00019452,2]
[364722594,1749220243035,-420.0,0.00019452,2]
[364722595,1749220243044,-430.84202799,0.00019452,2]
[364722596,1749220243053,-440.0,0.00019452,2]
[364722597,1749220243062,-440.0,0.00019452,2]
[364722599,1749220243072,-440.0,0.00019452,2]
[364722601,1749220243081,-430.0,0.00019452,2]
[364722603,1749220243090,-440.0,0.00019452,2]
[364722605,1749220243100,-440.0,0.00019452,2]
[364722607,1749220243109,-440.0,0.00019452,2]
[364722609,1749220243118,-430.0,0.00019452,2]
[364722611,1749220243128,-440.0,0.00019452,2]
[364722613,1749220243137,-440.0,0.00019452,2]
[364722615,1749220243147,-430.48647356,0.00019452,2]
[364722617,1749220243157,-440.0,0.00019452,2]
[364722619,1749220243167,-440.0,0.00019452,2]
[364722621,1749220243176,-440.0,0.00019452,2]
[364722623,1749220243185,-440.0,0.00019452,2]
[364722625,1749220243195,-440.0,0.00019452,2]
[364722627,1749220243204,-440.0,0.00019452,2]
[364722629,1749220243214,-440.0,0.00019452,2]
[364722631,1749220243223,-408.78370305,0.00019452,2]
[364722633,1749220243233,-440.0,0.00019452,2]
[364722635,1749220243242,-440.0,0.00019452,2]
[364722637,1749220243252,-440.0,0.00019452,2]
[364722639,1749220243262,-320.42168222,0.00019452,2]
[364722641,1749220243272,-440.0,0.00019452,2]
[364722643,1749220243282,-324.90065667,0.00019452,2]
[364722645,1749220243291,-430.0,0.00019452,2]
[364722647,1749220243300,-496.24617768,0.00019452,2]
[364722649,1749220243310,-430.96682637,0.00019452,2]
[364722651,1749220243319,-492.06816551,0.00019452,2]
[364722652,1749220243328,-413.5252943,0.00019452,2]
[364722654,1749220243337,-434.95814676,0.00019452,2]
[364722656,1749220243347,-430.0,0.00019452,2]
[364722658,1749220243357,-440.0,0.00019452,2]
[364722660,1749220243368,-440.0,0.00019452,2]
[364722662,1749220243379,-440.0,0.00019452,2]
[364722664,1749220243388,-479.32629688,0.00019452,2]
[364722667,1749220243398,-440.0,0.00019452,2]
[364722668,1749220243409,-440.0,0.00019452,2]
[364722670,1749220243418,-440.0,0.00019452,2]
[364722672,1749220243427,-440.0,0.00019452,2]
[364722674,1749220243437,-440.0,0.00019452,2]
[364722676,1749220243448,-440.0,0.00019452,2]
[364722679,1749220243458,-440.0,0.00019452,2]
[364722681,1749220243467,-559.6748547,0.00019452,2]
[364722683,1749220243477,-440.0,0.00019452,2]
[364722687,1749220243516,-420.0,0.00019452,2]
[364722689,1749220243525,-410.0,0.00019452,2]
[364722691,1749220243535,-430.0,0.00019452,2]
[364722693,1749220243544,-420.0,0.00019452,2]
[364722695,1749220243553,-913.64,0.00019452,2]
[364722698,1749220243565,-828.08,0.00019452,2]
[364722700,1749220243574,-440.0,0.00019452,2]
[364722701,1749220243583,-277.04832856,0.00019452,2]
[364722703,1749220243593,-440.0,0.00019452,2]
[364722705,1749220243603,-420.0,0.00019452,2]
[364722707,1749220243613,-420.0,0.00019452,2]
[364722709,1749220243623,-440.0,0.00019452,2]
[364722711,1749220243633,-425.52486214,0.00019452,2]
[364722713,1749220243642,-440.0,0.00019452,2]
[364722715,1749220243652,-440.0,0.00019452,2]
[364722717,1749220243662,-440.0,0.00019452,2]
[364722719,1749220243672,-440.0,0.00019452,2]
[364722721,1749220243681,-1086.4,0.00019452,2]
[364722723,1749220243690,-440.0,0.00019452,2]
[364722725,1749220243699,-263.27911492,0.00019452,2]
[364722727,1749220243708,-392.05553249,0.00019452,2]
[364722729,1749220243717,-420.0,0.00019452,2]
[364722731,1749220243727,-440.0,0.00019452,2]
[364722733,1749220243736,-440.0,0.00019452,2]
[364722735,1749220243745,-440.0,0.00019452,2]
[364722737,1749220243753,-440.0,0.00019452,2]
[364722739,1749220243763,-440.0,0.00019452,2]
[364722741,1749220243772,-228.22523127,0.00019452,2]
[364722743,1749220243782,-440.0,0.00019452,2]
[364722745,1749220243791,-440.0,0.00019452,2]
[364722747,1749220243800,-440.0,0.00019452,2]
[364722749,1749220243809,-440.0,0.00019452,2]
[364722751,1749220243818,-440.0,0.00019452,2]
[364722753,1749220243827,-440.0,0.00019452,2]
[364722755,1749220243836,-440.0,0.00019452,2]
[364722757,1749220243846,-440.0,0.00019452,2]
[364722759,1749220243855,-440.0,0.00019452,2]
[364722761,1749220243864,-440.0,0.00019452,2]
[364722763,1749220243873,-420.0,0.00019452,2]
[364722765,1749220243882,-440.0,0.00019452,2]
[364722767,1749220243891,-430.0,0.00019452,2]
[364722769,1749220243900,-440.0,0.00019452,2]
[364722770,1749220243910,-440.0,0.00019452,2]
[364722772,1749220243919,-440.0,0.00019452,2]
[364722774,1749220243928,-440.0,0.00019452,2]
[364722776,1749220243937,-500.0,0.00019452,2]
[364722778,1749220243947,-440.0,0.00019452,2]
[364722780,1749220243956,-382.89701531,0.00019452,2]
[364722782,1749220243965,-430.0,0.00019452,2]
[364722784,1749220243974,-440.0,0.00019452,2]
[364722786,1749220243984,-440.0,0.00019452,2]
[364722788,1749220243993,-440.0,0.00019452,2]
[364722790,1749220244002,-430.0,0.00019452,2]
[364722792,1749220244012,-420.0,0.00019452,2]
[364722794,1749220244021,-430.0,0.00019452,2]
[364722796,1749220244030,-440.0,0.00019452,2]
[364722798,1749220244040,-420.0,0.00019452,2]
[364722800,1749220244049,-420.0,0.00019452,2]
[364722803,1749220244058,-420.0,0.00019452,2]
[364722805,1749220244069,-440.0,0.00019452,2]
[364722806,1749220244079,-440.0,0.00019452,2]
[364722808,1749220244088,-430.0,0.00019452,2]
[364722810,1749220244098,-430.0,0.00019452,2]
[364722812,1749220244108,-440.0,0.00019452,2]
[364722815,1749220244119,-440.0,0.00019452,2]
[364722816,1749220244128,-440.0,0.00019452,2]
[364722819,1749220244138,-440.0,0.00019452,2]
[364722821,1749220244147,-440.0,0.00019452,2]
[364722822,1749220244157,-468.81,0.00019452,2]
[364722824,1749220244167,-444.12357598,0.00019452,2]
[364722827,1749220244177,-392.54168944,0.00019452,2]
[364722828,1749220244186,-430.0,0.00019452,2]
[364722830,1749220244196,-440.0,0.00019452,2]
[364722833,1749220244206,-440.0,0.00019452,2]
[364722835,1749220244215,-987.79,0.00019452,2]
[364722837,1749220244225,-440.0,0.00019452,2]
[364722838,1749220244234,-380.0,0.00019452,2]
[364722841,1749220244243,-440.0,0.00019452,2]
[364722842,1749220244253,-302.25293673,0.00019452,2]
[364722844,1749220244262,-420.0,0.00019452,2]
[364722846,1749220244272,-420.0,0.00019452,2]
[364722848,1749220244281,-1765.1,0.00019452,2]
[364722850,1749220244290,-400.0,0.00019452,2]
[364722852,1749220244299,-440.0,0.00019452,2]
[364722854,1749220244309,-440.0,0.00019452,2]
[364722857,1749220244320,-440.0,0.00019452,2]
[364722859,1749220244330,-440.0,0.00019452,2]
[364722861,1749220244339,-276.53535668,0.00019452,2]
[364722863,1749220244349,-440.75962182,0.00019452,2]
[364722865,1749220244359,-440.0,0.00019452,2]
[364722867,1749220244372,-440.0,0.00019452,2]
[364722869,1749220244381,-440.0,0.00019452,2]
[364722871,1749220244391,-440.0,0.00019452,2]
[364722873,1749220244401,-440.0,0.00019452,2]
[364722875,1749220244411,-285.52867336,0.00019452,2]
[364722876,1749220244420,-440.0,0.00019452,2]
[364722878,1749220244430,-430.0,0.00019452,2]
[364722880,1749220244440,-309.44033199,0.00019452,2]
[364722883,1749220244452,-538.75053903,0.00019452,2]
[364722885,1749220244462,-440.0,0.00019452,2]
[364722887,1749220244471,-433.2514171,0.00019452,2]
[364722889,1749220244481,-440.0,0.00019452,2]
[364722891,1749220244491,-440.0,0.00019452,2]
[364722893,1749220244500,-420.0,0.00019452,2]
[364722895,1749220244510,-440.0,0.00019452,2]
[364722897,1749220244519,-440.0,0.00019452,2]
[364722899,1749220244528,-440.0,0.00019452,2]
[364722901,1749220244539,-440.0,0.00019452,2]
[364722903,1749220244548,-445.52562561,0.00019452,2]
[364722905,1749220244558,-440.0,0.00019452,2]
[364722907,1749220244568,-420.0,0.00019452,2]
[364722909,1749220244578,-440.0,0.00019452,2]
[364722911,1749220244588,-440.0,0.00019452,2]
[364722913,1749220244598,-568.32589295,0.00019452,2]
[364722915,1749220244608,-440.0,0.00019452,2]
[364722917,1749220244618,-449.94098578,0.00019452,2]
[364722919,1749220244627,-440.0,0.00019452,2]
[364722921,1749220244637,-440.0,0.00019452,2]
[364722923,1749220244647,-440.0,0.00019452,2]
[364722925,1749220244656,-440.0,0.00019452,2]
[364722927,1749220244665,-545.27163844,0.00019452,2]
[364722929,1749220244675,-440.0,0.00019452,2]
[364722931,1749220244685,-506.73,0.00019452,2]
[364722933,1749220244695,-440.0,0.00019452,2]
[364722935,1749220244704,-421.29853876,0.00019452,2]
[364722937,1749220244714,-440.0,0.00019452,2]
[364722939,1749220244723,-430.0,0.00019452,2]
[364722941,1749220244733,-472.93184677,0.00019452,2]
[364722943,1749220244743,-515.58,0.00019452,2]
[364722945,1749220244752,-397.39966698,0.00019452,2]
[364722947,1749220244761,-440.0,0.00019452,2]
[364722949,1749220244771,-540.0,0.00019452,2]
[364722951,1749220244781,-440.0,0.00019452,2]
[364722953,1749220244790,-440.0,0.00019452,2]
[364722955,1749220244800,-420.0,0.00019452,2]
[364722957,1749220244809,-412.65062192,0.00019452,2]
[364722959,1749220244819,-440.0,0.00019452,2]
[364722961,1749220244829,-440.0,0.00019452,2]
[364722963,1749220244838,-440.0,0.00019452,2]
[364722965,1749220244847,-336.97082694,0.00019452,2]
[364722967,1749220244857,-400.0,0.00019452,2]
[364722969,1749220244867,-440.0,0.00019452,2]
[364722971,1749220244876,-183.91951072,0.00019452,2]
[364722973,1749220244886,-440.0,0.00019452,2]
[364722975,1749220244895,-440.0,0.00019452,2]
[364722977,1749220244905,-451.13908045,0.00019452,2]
[364722979,1749220244915,-430.0,0.00019452,2]
[364722981,1749220244925,-440.0,0.00019452,2]
[364722983,1749220244935,-430.0,0.00019452,2]
[364722985,1749220244944,-440.0,0.00019452,2]
[364722987,1749220244954,-411.25242609,0.00019452,2]
[364722989,1749220244963,-422.68959887,0.00019452,2]
[364722991,1749220244972,-1801.78,0.00019452,2]
[364722993,1749220244982,-440.0,0.00019452,2]
[364722997,1749220244991,-430.0,0.00019452,2]
[364723000,1749220245001,-420.0,0.00019452,2]
[364723004,1749220245011,-440.0,0.00019452,2]
[364723007,1749220245021,-440.0,0.00019452,2]
[364723010,1749220245030,-141.06157897,0.00019452,2]
[364723058,1749220245457,-1031.38245891,0.00019166,2]
[364723061,1749220245469,-14968.61754109,0.00019166,2]
[364723063,1749220245479,-440.0,0.00019178,2]
[364723064,1749220245490,-440.0,0.00019178,2]
[364723065,1749220245500,-283.90457923,0.00019452,2]
[364723066,1749220245511,-440.0,0.00019452,2]
[364723068,1749220245520,-440.0,0.00019452,2]
[364723070,1749220245530,-440.0,0.00019452,2]
[364723072,1749220245540,-440.0,0.00019452,2]
[364723075,1749220245549,-440.0,0.00019452,2]
[364723077,1749220245559,-440.0,0.00019452,2]
[364723079,1749220245569,-438.39040511,0.00019452,2]
[364723081,1749220245579,-440.0,0.00019452,2]
[364723083,1749220245589,-440.0,0.00019452,2]
[364723085,1749220245598,-430.0,0.00019452,2]
[364723088,1749220245607,-269.04152307,0.00019452,2]
[364723091,1749220245617,-715.44,0.00019452,2]
[364723093,1749220245626,-430.0,0.00019452,2]
[364723095,1749220245636,-1073.85,0.00019452,2]
[364723097,1749220245646,-420.0,0.00019452,2]
[364723099,1749220245658,-911.83,0.00019452,2]
[364723101,1749220245668,-440.0,0.00019452,2]
[364723103,1749220245677,-420.0,0.00019452,2]
[364723105,1749220245687,-440.0,0.00019452,2]
[364723107,1749220245696,-440.0,0.00019452,2]
[364723109,1749220245706,-440.0,0.00019452,2]
[364723111,1749220245716,-440.0,0.00019452,2]
[364723114,1749220245726,-440.0,0.00019452,2]
[364723115,1749220245735,-440.0,0.00019452,2]
[364723118,1749220245745,-440.0,0.00019452,2]
[364723120,1749220245755,-440.0,0.00019452,2]
[364723122,1749220245764,-422.85568984,0.00019452,2]
[364723124,1749220245774,-440.0,0.00019452,2]
[364723126,1749220245784,-440.0,0.00019452,2]
[364723128,1749220245794,-440.0,0.00019452,2]
[364723130,1749220245804,-410.0,0.00019452,2]
[364723132,1749220245814,-440.0,0.00019452,2]
[364723134,1749220245823,-440.0,0.00019452,2]
[364723136,1749220245834,-440.0,0.00019452,2]
[364723138,1749220245844,-440.0,0.00019452,2]
[364723140,1749220245855,-440.0,0.00019452,2]
[364723142,1749220245866,-376.14914467,0.00019452,2]
[364723144,1749220245875,-440.0,0.00019452,2]
[364723146,1749220245886,-440.0,0.00019452,2]
[364723148,1749220245896,-440.0,0.00019452,2]
[364723150,1749220245906,-430.0,0.00019452,2]
[364723153,1749220245916,-430.0,0.00019452,2]
[364723155,1749220245926,-430.0,0.00019452,2]
[364723157,1749220245938,-1133.7,0.00019452,2]
[364723159,1749220245948,-440.0,0.00019452,2]
[364723161,1749220245957,-440.0,0.00019452,2]
[364723163,1749220245967,-278.0,0.00019452,2]
[364723165,1749220245977,-420.0,0.00019452,2]
[364723167,1749220245987,-440.0,0.00019452,2]
[364723169,1749220245997,-403.92269372,0.00019452,2]
[364723171,1749220246006,-430.0,0.00019452,2]
[364723173,1749220246016,-1638.58,0.00019452,2]
[364723175,1749220246026,-420.0,0.00019452,2]
[364723177,1749220246036,-420.0,0.00019452,2]
[364723179,1749220246046,-432.33709243,0.00019452,2]
[364723181,1749220246056,-440.0,0.00019452,2]
[364723183,1749220246066,-424.18593435,0.00019452,2]
[364723197,1749220246186,-420.0,0.00019452,2]
[364723199,1749220246195,-440.0,0.00019452,2]
[364723201,1749220246205,-430.0,0.00019452,2]
[364723203,1749220246215,-447.99699983,0.00019452,2]
[364723205,1749220246224,-440.0,0.00019452,2]
[364723207,1749220246234,-423.1227896,0.00019452,2]
[364723209,1749220246243,-430.0,0.00019452,2]
[364723211,1749220246252,-440.0,0.00019452,2]
[364723213,1749220246262,-382.09651185,0.00019452,2]
[364723215,1749220246272,-440.0,0.00019452,2]
[364723217,1749220246281,-449.28771871,0.00019452,2]
[364723219,1749220246291,-548.10418213,0.00019452,2]
[364723221,1749220246300,-440.0,0.00019452,2]
[364723223,1749220246310,-500.0,0.00019452,2]
[364723225,1749220246319,-500.0,0.00019473,2]
[364723227,1749220246329,-500.0,0.00019473,2]
[364723229,1749220246339,-500.0,0.00019473,2]
[364723231,1749220246348,-209.36064581,0.00019473,2]
[364723233,1749220246357,-500.0,0.00019473,2]
[364723235,1749220246367,-500.0,0.00019473,2]
[364723237,1749220246381,-500.0,0.00019473,2]
[364723239,1749220246390,-500.0,0.00019473,2]
[364723242,1749220246400,-158.31288578,0.00019473,2]
[364723243,1749220246410,-1002.4565221,0.000195,2]
[364723245,1749220246421,-231.8973345,0.00019518,2]
[364723247,1749220246430,-941.56018399,0.0001955,2]
[364723249,1749220246440,-150.0,0.00019718,2]
[364723252,1749220246450,-500.0,0.00019721,2]
[364723253,1749220246459,-443.44214062,0.00019721,2]
[364723255,1749220246469,-440.0,0.00019726,2]
[364723258,1749220246479,-440.0,0.00019726,2]
[364723260,1749220246488,-259.62444442,0.00019726,2]
[364723262,1749220246497,-440.0,0.00019726,2]
[364723264,1749220246508,-410.0,0.00019726,2]
[364723266,1749220246517,-461.09075428,0.00019726,2]
[364723268,1749220246527,-430.0,0.00019726,2]
[364723270,1749220246536,-424.05625868,0.00019726,2]
[364723271,1749220246546,-440.0,0.00019726,2]
[364723273,1749220246556,-440.0,0.00019726,2]
[364723276,1749220246566,-430.0,0.00019726,2]
[364723278,1749220246575,-430.0,0.00019726,2]
[364723280,1749220246585,-430.0,0.00019726,2]
[364723282,1749220246595,-235.41406496,0.00019726,2]
[364723284,1749220246605,-432.04228063,0.00019726,2]
[364723286,1749220246614,-430.0,0.00019726,2]
[364723288,1749220246623,-440.0,0.00019726,2]
[364723290,1749220246632,-366.00348126,0.00019726,2]
[364723292,1749220246641,-449.10777376,0.00019726,2]
[364723294,1749220246651,-430.0,0.00019726,2]
[364723296,1749220246663,-440.0,0.00019726,2]
[364723298,1749220246673,-440.0,0.00019726,2]
[364723300,1749220246682,-427.11848685,0.00019726,2]
[364723302,1749220246692,-440.0,0.00019726,2]
[364723304,1749220246702,-440.0,0.00019726,2]
[364723306,1749220246711,-440.0,0.00019726,2]
[364723308,1749220246720,-170.63763326,0.00019726,2]
[364723310,1749220246730,-440.0,0.00019726,2]
[364723312,1749220246739,-440.0,0.00019726,2]
[364723314,1749220246749,-430.0,0.00019726,2]
[364723316,1749220246758,-517.30722969,0.00019726,2]
[364723318,1749220246767,-420.0,0.00019726,2]
[364723320,1749220246778,-440.0,0.00019726,2]
[364723322,1749220246787,-520.0,0.00019726,2]
[364723324,1749220246796,-440.0,0.00019726,2]
[364723326,1749220246806,-440.0,0.00019726,2]
[364723328,1749220246815,-249.04781292,0.00019726,2]
[364723330,1749220246824,-440.0,0.00019726,2]
[364723332,1749220246833,-440.0,0.00019726,2]
[364723334,1749220246842,-231.80368131,0.00019726,2]
[364723336,1749220246851,-410.0,0.00019726,2]
[364723338,1749220246861,-177.60360734,0.00019726,2]
[364723340,1749220246870,-440.0,0.00019726,2]
[364723342,1749220246880,-440.0,0.00019726,2]
[364723344,1749220246890,-430.0,0.00019726,2]
[364723346,1749220246899,-440.0,0.00019726,2]
[364723348,1749220246909,-434.60090645,0.00019726,2]
[364723350,1749220246919,-391.09908079,0.00019726,2]
[364723351,1749220246928,-440.0,0.00019726,2]
[364723354,1749220246937,-429.43214443,0.00019726,2]
[364723355,1749220246947,-440.0,0.00019726,2]
[364723358,1749220246957,-203.87001257,0.00019726,2]
[364723359,1749220246966,-433.83210481,0.00019726,2]
[364723361,1749220246976,-421.35883628,0.00019726,2]
[364723364,1749220246986,-440.0,0.00019726,2]
[364723366,1749220246995,-440.0,0.00019726,2]
[364723368,1749220247005,-301.73722272,0.00019726,2]
[364723370,1749220247014,-440.0,0.00019726,2]
[364723371,1749220247023,-440.0,0.00019726,2]
[364723373,1749220247032,-440.0,0.00019726,2]
[364723376,1749220247042,-360.19855264,0.00019726,2]
[364723378,1749220247052,-430.0,0.00019726,2]
[364723380,1749220247061,-440.0,0.00019726,2]
[364723381,1749220247071,-440.0,0.00019726,2]
[364723384,1749220247081,-390.0,0.00019726,2]
[364723386,1749220247090,-440.0,0.00019726,2]
[364723388,1749220247099,-430.0,0.00019726,2]
[364723389,1749220247109,-300.36280278,0.00019726,2]
[364723391,1749220247118,-403.19832708,0.00019726,2]
[364723393,1749220247127,-431.84166262,0.00019726,2]
[364723395,1749220247137,-420.0,0.00019726,2]
[364723398,1749220247146,-440.0,0.00019726,2]
[364723399,1749220247157,-425.85377488,0.00019726,2]
[364723401,1749220247166,-432.56227709,0.00019726,2]
[364723403,1749220247176,-440.0,0.00019726,2]
[364723406,1749220247185,-432.73633493,0.00019726,2]
[364723407,1749220247194,-440.0,0.00019726,2]
[364723409,1749220247204,-440.0,0.00019726,2]
[364723412,1749220247213,-350.0,0.00019726,2]
[364723413,1749220247223,-440.0,0.00019726,2]
[364723415,1749220247232,-430.0,0.00019726,2]
[364723418,1749220247241,-451.93621007,0.00019726,2]
[364723420,1749220247251,-420.83801332,0.00019726,2]
[364723422,1749220247260,-440.0,0.00019726,2]
[364723424,1749220247270,-348.755003,0.00019726,2]
[364723426,1749220247279,-440.0,0.00019726,2]
[364723428,1749220247289,-410.0,0.00019726,2]
[364723430,1749220247298,-440.0,0.00019726,2]
[364723432,1749220247307,-211.22874577,0.00019726,2]
[364723434,1749220247316,-410.0,0.00019726,2]
[364723436,1749220247325,-424.02245315,0.00019726,2]
[364723437,1749220247335,-440.0,0.00019726,2]
[364723440,1749220247345,-440.0,0.00019726,2]
[364723441,1749220247354,-372.21379846,0.00019726,2]
[364723444,1749220247366,-430.0,0.00019726,2]
[364723446,1749220247380,-430.0,0.00019726,2]
[364723447,1749220247389,-430.0,0.00019726,2]
[364723450,1749220247398,-393.8251541,0.00019726,2]
[364723451,1749220247408,-440.0,0.00019726,2]
[364723453,1749220247419,-440.0,0.00019726,2]
[364723456,1749220247429,-420.0,0.00019726,2]
[364723458,1749220247438,-472.56191319,0.00019726,2]
[364723460,1749220247448,-440.0,0.00019726,2]
[364723462,1749220247458,-417.06361174,0.00019726,2]
[364723464,1749220247468,-440.0,0.00019726,2]
[364723465,1749220247478,-440.0,0.00019726,2]